bitfinex-derivatives/quotes_SOLF0:USTF0_20250719
["timestamp","ask_amount","ask_price","bid_price","bid_amount"]
[1752948683769,3.19,177.2,177.17,8.7812]
[1752948684069,3.19,177.2,177.17,3.14]
[1752948684470,3.22638143,177.2,177.17,3.14]
[1752948684670,3.19,177.19,177.17,3.14]
[1752948685466,3.19,177.18,177.15,8.7818]
[1752948685671,3.19,177.18,177.16,3.14]
[1752948686171,3.19,177.19,177.17,3.14]
[1752948686470,3.19,177.18,177.16,5.6416]
[1752948687168,3.19,177.18,177.17,3.14]
[1752948688468,3.19,177.18,177.17,8.7813]
[1752948689666,3.19,177.18,177.17,3.14]
[1752948691473,3.19,177.18,177.12,177.08574099]
[1752948691670,2.43268965,177.18,177.13,3.14]
[1752948691871,3.19,177.17,177.14,3.14]
[1752948692170,3.19,177.17,177.15,3.14]
[1752948695873,3.19,177.17,177.14,3.14]
[1752948696876,5.6413,177.17,177.14,3.14]
[1752948697071,3.19,177.16,177.14,3.14]
[1752948697471,3.19,177.17,177.15,3.14]
[1752948697666,0.03655971,177.18,177.12,177.08574099]
[1752948697975,3.19,177.16,177.14,5.6421]
[1752948698474,3.19,177.16,177.15,3.14]
[1752948698971,3.22655971,177.18,177.15,3.14]
[1752948699479,0.03655971,177.18,177.15,3.14]
[1752948699777,0.03655971,177.18,177.17,8.7813]
[1752948700572,3.19,177.23,177.2,5.6402]
[1752948700870,3.19,177.23,177.21,3.14]
[1752948701076,3.19,177.22,177.2,5.6402]
[1752948701274,3.19,177.22,177.21,5.64]
[1752948701476,3.19,177.24,177.19,3.14]
[1752948701977,3.19,177.26,177.21,3.14]
[1752948702177,2.43268965,177.29,177.22,2.43268965]
[1752948702373,3.19,177.28,177.23,5.6393]
[1752948702574,5.6383,177.27,177.24,3.14]
[1752948702876,3.19,177.26,177.25,3.14]
[1752948704379,2.43268965,177.29,177.25,8.7788]
[1752948704582,2.43268965,177.29,177.26,3.14]
[1752948704875,3.19,177.27,177.26,3.14]
[1752948708082,3.19,177.27,177.25,3.14]
[1752948714599,3.19,177.27,177.24,5.68085403]
[1752948714897,3.19,177.27,177.26,3.1]
[1752948716802,3.12,177.26,177.2,3.1]
[1752948717100,3.12,177.26,177.12,181.80562769]
[1752948717101,2.43268965,177.21,177.16,3.1]
[1752948717301,3.12,177.2,177.16,3.1]
[1752948717902,3.12,177.2,177.18,3.1]
[1752948718202,3.12,177.19,177.13,2.43268965]
[1752948718602,0.03827805,177.2,177.19,5.6407]
[1752948718903,3.15827805,177.2,177.19,8.7407]
[1752948721705,3.15827805,177.2,177.19,3.1]
[1752948722703,3.15827805,177.2,177.18,3.1]
[1752948724607,0.03827805,177.2,177.13,2.43268965]
[1752948724801,3.15827805,177.2,177.13,2.43268965]
[1752948725107,3.15827805,177.2,177.19,3.1]
[1752948733911,3.15827805,177.2,177.19,8.7407]
[1752948735214,3.15827805,177.2,177.18,3.1]
[1752948735512,3.12,177.19,177.18,3.1]
[1752948739017,3.12,177.19,177.18,8.741]
[1752948744421,3.12,177.19,177.18,3.1]
[1752948745523,3.12,177.19,177.17,5.6412]
[1752948745824,3.01,177.18,177.16,8.9615]
[1752948746021,3.01,177.18,177.17,3.32]
[1752948746219,3.01,177.18,177.17,8.9613]
[1752948749927,8.651,177.18,177.17,3.32]
[1752948750128,3.01,177.18,177.17,3.32]
[1752948750628,3.01,177.18,177.17,8.9613]
[1752948751529,3.01,177.18,177.17,3.32]
[1752948752329,3.01,177.18,177.17,8.9613]
[1752948753830,4.55133543,177.18,177.17,8.9613]
[1752948758631,3.04827805,177.2,177.18,5.6407]
[1752948758931,3.01,177.19,177.18,5.6407]
[1752948759430,3.01,177.19,177.18,8.9607]
[1752948761325,0.03827805,177.2,177.19,8.9607]
[1752948761929,3.01,177.24,177.23,5.6392]
[1752948762531,3.01,177.24,177.23,8.9592]
[1752948762729,3.01,177.26,177.25,3.32]
[1752948763228,3.01,177.28,177.25,3.32]
[1752948763425,3.01,177.27,177.26,8.9582]
[1752948763624,3.01,177.27,177.26,3.32]
[1752948764238,3.01,177.27,177.24,0.04152854]
[1752948764440,3.01,177.27,177.25,3.32]
[1752948764634,3.01,177.26,177.25,3.32]
[1752948765929,3.01,177.26,177.25,8.9588]
[1752948766133,3.01,177.26,177.24,0.04152854]
[1752948766638,3.01,177.26,177.24,3.36152854]
[1752948766933,3.01,177.26,177.25,3.32]
[1752948768439,8.6484,177.26,177.25,3.32]
[1752948768643,3.01,177.25,177.24,3.36152854]
[1752948768942,3.01,177.25,177.24,0.04152854]
[1752948768943,8.6488,177.25,177.24,0.04152854]
[1752948770645,3.01,177.25,177.24,0.04152854]
[1752948771046,3.01,177.25,177.24,3.13152854]
[1752948779248,8.6488,177.25,177.24,0.04152854]
[1752948781351,3.15,177.23,177.2,3.09]
[1752948781550,3.15,177.21,177.19,3.09]
[1752948781750,5.6402,177.21,177.19,3.09]
[1752948781950,3.15,177.2,177.19,3.09]
[1752948782552,0.03760273,177.21,177.19,3.09]
[1752948782752,3.18760273,177.21,177.19,3.09]
[1752948782948,3.15,177.2,177.19,3.09]
[1752948783153,3.15,177.2,177.1,11.2869]
[1752948783154,3.15,177.2,177.14,2.40591216]
[1752948783353,3.15,177.2,177.18,3.09]
[1752948787652,3.15,177.2,177.16,8.7315]
[1752948787851,3.15,177.2,177.13,2.40591216]
[1752948788055,3.15,177.2,177.14,3.09]
[1752948788455,3.15,177.2,177.19,3.09]
[1752948789461,0.04259136,177.21,177.2,8.7303]
[1752948789656,3.15,177.25,177.2,3.09]
[1752948790253,3.15,177.25,177.24,5.6391]
[1752948790456,3.15,177.25,177.24,8.7291]
[1752948791153,3.15,177.25,177.24,3.09]
[1752948793855,3.15,177.25,177.19,2.40591216]
[1752948794062,3.15,177.25,177.22,3.09]
[1752948794063,3.15,177.24,177.22,3.09]
[1752948794359,3.15,177.23,177.16,3.09]
[1752948794561,3.15,177.21,177.19,3.09]
[1752948795658,3.15,177.21,177.2,3.09]
[1752948799170,8.7899,177.22,177.2,3.09]
[1752948799464,3.15,177.22,177.2,3.09]
[1752948799668,2.40591216,177.24,177.2,3.09]
[1752948799968,3.15,177.21,177.2,3.09]
[1752948806074,3.15,177.21,177.2,8.7303]
[1752948811475,8.7396,177.23,177.2,8.7303]
[1752948811774,3.1,177.22,177.21,3.24]
[1752948812974,8.7397,177.22,177.19,5.6405]
[1752948813176,3.1,177.21,177.2,3.24]
[1752948813779,3.1,177.21,177.2,8.8803]
[1752948819585,4.64080664,177.23,177.22,3.24]
[1752948819780,1.54080664,177.23,177.22,3.24]
[1752948819977,4.64080664,177.23,177.22,3.24]
[1752948820176,7.18020664,177.23,177.21,5.6398]
[1752948820383,3.1,177.22,177.21,8.8798]
[1752948820579,3.1,177.22,177.19,5.6838318]
[1752948820784,3.1,177.2,177.19,0.0433318]
[1752948824086,10.28110664,177.2,177.19,0.0433318]
[1752948825584,3.1,177.19,177.15,3.24]
[1752948825784,4.64080664,177.16,177.15,3.24]
[1752948825986,4.64080664,177.16,177.1,3.24]
[1752948825987,5.6425,177.14,177.1,3.24]
[1752948826282,3.1,177.12,177.11,3.24]
[1752948828084,3.1,177.12,177.05,379.24]
[1752948828085,3.1,177.12,177.09,3.24]
[1752948828282,3.1,177.1,177.06,1.54080664]
[1752948828482,3.1,177.09,177.06,1.54080664]
[1752948828682,1.54080664,177.11,177.09,5.6438]
[1752948828879,3.1,177.12,177.09,5.6438]
[1752948829086,3.1,177.11,177.09,5.6438]
[1752948829588,3.14026583,177.12,177.11,3.24]
[1752948830090,0.04026583,177.12,177.11,8.8832]
[1752948830487,0.04026583,177.12,177.11,5.6432]
[1752948830684,3.2,177.16,177.15,3.15]
[1752948830885,3.2,177.17,177.15,3.15]
[1752948831286,2.41041142,177.17,177.14,8.7921]
[1752948831590,3.2,177.16,177.14,8.7921]
[1752948832289,3.2,177.16,177.15,3.15]
[1752948832892,3.2,177.16,177.14,8.7921]
[1752948834188,3.2,177.16,177.15,3.15]
[1752948836095,3.2,177.16,177.15,8.7919]
[1752948837998,3.2,177.16,177.15,3.15]
[1752948841801,3.2,177.18,177.15,3.15]
[1752948842004,3.2,177.19,177.15,3.15]
[1752948842206,3.2,177.17,177.15,3.15]
[1752948842905,3.2,177.16,177.15,5.6418]
[1752948843100,3.2,177.18,177.1,2.41041142]
[1752948843500,5.6416,177.17,177.13,5.6423]
[1752948843700,3.2,177.16,177.14,3.15]
[1752948844409,3.2,177.13,177.09,103.04]
[1752948844806,3.2,177.13,177.12,5.6429]
[1752948845004,3.2,177.13,177.12,8.7929]
[1752948846309,3.2,177.13,177.12,3.15]
[1752948847613,8.842,177.15,177.12,3.15]
[1752948847814,5.642,177.15,177.12,3.15]
[1752948848013,3.2,177.14,177.12,3.15]
[1752948848817,3.2,177.14,177.12,8.7927]
[1752948849114,3.2,177.14,177.13,3.15]
[1752948852117,8.8423,177.14,177.13,3.15]
[1752948852318,3.2,177.13,177.11,8.7932]
[1752948852719,3.2,177.13,177.12,3.15]
[1752948853216,3.2,177.13,177.12,8.7929]
[1752948854019,3.2,177.13,177.12,3.15]
[1752948857021,3.2,177.13,177.11,3.15]
[1752948857219,8.8426,177.13,177.1,5.6435]
[1752948857424,3.2,177.12,177.1,3.15]
[1752948857725,3.2,177.11,177.08,3.15]
[1752948858323,6.31126413,177.18,177.08,3.15]
[1752948858324,3.2,177.1,177.08,3.15]
[1752948858621,3.2,177.1,177.09,5.6436]
[1752948858922,3.2,177.1,177.09,8.7936]
[1752948862622,3.2,177.1,177.09,3.15]
[1752948864824,8.8435,177.1,177.09,3.15]
[1752948865130,8.8635,177.1,177.09,3.15]
[1752948865329,3.22,177.09,177.08,3.13727782]
[1752948866127,3.22,177.09,177.08,0.03727782]
[1752948866830,3.22,177.09,177.08,3.13727782]
[1752948870328,3.22,177.1,177.08,3.13727782]
[1752948870929,8.09625871,177.11,177.08,3.13727782]
[1752948870930,3.22,177.09,177.08,3.13727782]
[1752948872026,3.22,177.09,177.08,0.03727782]
[1752948872927,3.22,177.09,177.08,3.13727782]
[1752948875627,3.22,177.09,177.08,0.03727782]
[1752948875823,3.22,177.09,177.08,3.13727782]
[1752948876427,11.31615871,177.11,177.08,3.13727782]
[1752948876629,3.22,177.1,177.08,3.13727782]
[1752948876829,3.22,177.09,177.08,3.13727782]
[1752948877832,3.22,177.09,177.08,0.03727782]
[1752948878639,11.27431142,177.09,177.08,0.03727782]
[1752948878930,3.22,177.08,177.05,3.1]
[1752948879129,2.41041142,177.07,177.05,3.1]
[1752948879332,3.22,177.06,177.05,3.1]
[1752948879532,3.22,177.06,177.04,3.1]
[1752948879935,8.05491142,177.07,177.04,5.6454]
[1752948880240,11.31160336,177.07,177.05,3.1]
[1752948880639,3.22,177.06,177.05,3.1]
[1752948882734,2.44710336,177.07,177.05,3.1]
[1752948882943,5.66710336,177.07,177.05,3.1]
[1752948883341,3.25669194,177.07,177.05,8.7451]
[1752948883540,3.25669194,177.07,177.06,3.1]
[1752948890948,4.80023625,177.07,177.06,3.1]
[1752948894550,0.03669194,177.07,177.06,3.1]
[1752948895945,0.03669194,177.07,177.06,8.7448]
[1752948899554,0.03669194,177.07,177.06,10.28834431]
[1752948900155,10.50684431,177.11,177.08,3.23]
[1752948900355,3.32,177.1,177.08,3.23]
[1752948900749,3.32,177.09,177.08,8.8742]
[1752948901253,3.32,177.13,177.12,5.6429]
[1752948901453,3.32,177.13,177.12,10.41644431]
[1752948903059,142.91143414,177.17,177.14,8.8722]
[1752948903250,3.32,177.16,177.12,3.23]
[1752948903556,2.40932049,177.16,177.12,3.23]
[1752948903852,5.642,177.15,177.12,3.23]
[1752948904048,3.32,177.14,177.12,3.23]
[1752948904448,3.32,177.14,177.13,3.23]
[1752948908065,3.32,177.14,177.13,8.8726]
[1752948912767,3.32,177.14,177.13,3.23]
[1752948913562,8.9623,177.14,177.13,3.23]
[1752948913763,5.72932049,177.14,177.1,3.23]
[1752948914069,3.32,177.13,177.1,3.23]
[1752948914468,3.32,177.12,177.09,5.6436]
[1752948914667,3.32,177.12,177.11,3.23]
[1752948916065,2.40932049,177.17,177.11,3.23]
[1752948916269,987.18775441,177.94,177.11,3.23]
[1752948916270,6.32423465,177.2,177.11,3.23]
[1752948916472,2.40932049,177.18,177.11,3.23]
[1752948916669,5.6415,177.17,177.12,5.6427]
[1752948916867,5.72932049,177.16,177.13,3.23]
[1752948917069,3.32,177.15,177.14,3.23]
[1752948919673,5.6411,177.18,177.14,8.8723]
[1752948919872,3.32,177.17,177.15,3.23]
[1752948920771,3.32,177.17,177.15,5.6417]
[1752948920971,3.32,177.17,177.16,3.02]
[1752948921668,3.32,177.17,177.16,8.6616]
[1752948921871,3.01,177.2,177.17,3.02]
[1752948922470,3.01,177.21,177.17,3.02]
[1752948922670,3.01,177.2,177.17,3.02]
[1752948922869,3.01,177.2,177.18,5.6408]
[1752948923170,3.01,177.2,177.19,3.02]
[1752948925174,3.01,177.21,177.2,3.02]
[1752948926578,3.01,177.21,177.18,8.6608]
[1752948927077,3.01,177.21,177.19,3.02]
[1752948927881,3.01,177.2,177.17,8.6612]
[1752948928076,2.40932049,177.18,177.1,2.40932049]
[1752948928380,5.6415,177.17,177.13,5.6425]
[1752948928578,3.01,177.16,177.14,3.02]
[1752948929981,3.01,177.15,177.14,3.02]
[1752948930183,3.01,177.15,177.14,8.6623]
[1752948930981,8.05052049,177.18,177.14,8.6623]
[1752948931282,3.01,177.17,177.15,3.02]
[1752948931982,3.01,177.16,177.15,3.02]
[1752948932781,8.05052049,177.18,177.15,3.02]
[1752948932984,3.01,177.17,177.15,3.02]
[1752948933285,5.41932049,177.2,177.12,2.40932049]
[1752948933479,5.41932049,177.2,177.13,3.02]
[1752948933679,3.01,177.19,177.13,3.02]
[1752948933881,8.6509,177.19,177.13,3.02]
[1752948934079,3.01,177.18,177.13,3.02]
[1752948934684,3.01,177.18,177.16,5.6416]
[1752948934884,3.01,177.18,177.17,3.02]
[1752948937888,3.01,177.18,177.17,8.6613]
[1752948938288,8.6505,177.2,177.18,3.02]
[1752948938484,5.6405,177.2,177.17,5.6413]
[1752948938785,3.01,177.19,177.18,5.641]
[1752948939187,3.01,177.2,177.14,2.40932049]
[1752948939389,3.01,177.21,177.2,3.02]
[1752948952996,4.55086263,177.21,177.2,3.02]
[1752948956695,8.8597,177.22,177.2,3.02]
[1752948956896,10.40056263,177.22,177.2,3.02]
[1752948957200,7.18056263,177.22,177.2,3.02]
[1752948957396,3.22,177.21,177.2,3.02]
[1752948957799,3.22,177.2,177.19,0.04230359]
[1752948957993,4.76086263,177.2,177.19,0.04230359]
[1752948958796,10.40126263,177.2,177.19,0.04230359]
[1752948959997,4.76086263,177.2,177.19,0.04230359]
[1752948960202,4.76086263,177.2,177.19,3.33230359]
[1752948960398,3.22,177.23,177.19,3.33230359]
[1752948960599,3.22,177.21,177.19,3.33230359]
[1752948961002,3.22,177.2,177.19,3.33230359]
[1752948961701,3.22,177.2,177.19,8.97280359]
[1752948962300,4.76086263,177.2,177.19,0.04230359]
[1752948962598,3.22,177.2,177.19,3.33230359]
[1752948965001,3.22,177.2,177.19,0.04230359]
[1752948965800,4.76086263,177.2,177.19,3.33230359]
[1752948968106,3.22,177.2,177.19,3.33230359]
[1752948970510,3.22,177.2,177.19,8.97300359]
[1752948973517,3.22,177.2,177.19,0.04230359]
[1752948974615,8.8604,177.2,177.19,0.04230359]
[1752948975206,3.22,177.16,177.11,4.83086263]
[1752948975411,3.22,177.14,177.12,3.29]
[1752948975607,3.22,177.18,177.13,1.54086263]
[1752948975812,3.22,177.18,177.16,3.29]
[1752948976313,3.22,177.18,177.17,3.29]
[1752948978211,3.22,177.18,177.16,5.6415]
[1752948978413,4.76086263,177.17,177.14,3.29]
[1752948978615,1.54086263,177.15,177.13,5.6425]
[1752948978813,3.22,177.14,177.12,1.54086263]
[1752948979214,3.22,177.14,177.13,5.6426]
[1752948979513,3.22,177.14,177.13,8.9326]
[1752948980217,1.57647657,177.15,177.14,5.6423]
[1752948980414,3.08561394,177.15,177.14,8.7823]
[1752948982114,0.03561394,177.15,177.14,8.7823]
[1752948982515,0.03561394,177.15,177.14,10.32316263]
[1752948988125,4.59086263,177.2,177.19,3.14]
[1752948988518,4.59086263,177.2,177.19,8.7807]
[1752948989118,3.05,177.2,177.19,8.7807]
[1752948989324,3.05,177.22,177.19,3.14]
[1752948989522,3.05,177.22,177.21,3.14]
[1752948990823,3.05,177.23,177.21,3.14]
[1752948991122,3.05,177.24,177.21,3.14]
[1752948991323,3.05,177.24,177.23,3.14]
[1752948991927,3.05,177.24,177.23,8.7792]
[1752948997829,3.05,177.24,177.23,3.14]
[1752949000035,3.05,177.24,177.23,8.7794]
[1752949000236,3.05,177.24,177.23,3.14]
[1752949001833,3.05,177.24,177.23,8.7794]
[1752949003331,3.05,177.25,177.24,5.639]
[1752949003635,3.05,177.26,177.2,2.40641042]
[1752949003833,3.05,177.25,177.22,5.6395]
[1752949004033,3.05,177.25,177.21,3.14]
[1752949004237,3.05,177.23,177.14,102.94]
[1752949004432,2.40641042,177.24,177.14,102.94]
[1752949004433,3.05,177.21,177.16,3.14]
[1752949005238,3.05,177.2,177.19,3.14]
[1752949005433,5.45641042,177.2,177.11,7.13044776]
[1752949005637,6.32423465,177.27,177.07,11.2888]
[1752949005638,8.6916,177.17,177.14,5.642]
[1752949005834,5.45641042,177.16,177.14,3.14]
[1752949006039,2.40641042,177.16,177.13,3.14]
[1752949006239,3.05,177.15,177.13,8.7824]
[1752949006435,3.05,177.15,177.14,3.14]
[1752949007337,3.05,177.15,177.12,5.67836432]
[1752949007634,3.05,177.15,177.12,3.17556432]
[1752949008037,2.40641042,177.14,177.12,0.03556432]
[1752949008243,3.05,177.13,177.12,0.03556432]
[1752949010439,5.6426,177.13,177.12,0.03556432]
[1752949010641,8.8826,177.13,177.12,0.03556432]
[1752949011536,8.8826,177.13,177.05,482.34]
[1752949011537,3.24,177.1,177.08,3.2]
[1752949013238,0.03878669,177.11,177.08,8.844]
[1752949013443,3.24,177.09,177.08,5.644]
[1752949013844,3.24,177.09,177.08,8.844]
[1752949014245,0.03878669,177.11,177.06,5.60641042]
[1752949014547,0.03878669,177.11,177.07,3.2]
[1752949016348,3.27878669,177.11,177.09,3.2]
[1752949016543,3.27878669,177.11,177.05,103.06]
[1752949016544,0.03878669,177.11,177.05,103.06]
[1752949016749,3.24,177.1,177.05,103.06]
[1752949016950,3.24,177.1,177.07,5.6443]
[1752949017151,3.24,177.1,177.08,3.2]
[1752949018251,3.24,177.1,177.08,8.8441]
[1752949018449,3.24,177.09,177.08,5.6441]
[1752949018651,3.27878669,177.11,177.05,103.06]
[1752949018851,3.27878669,177.11,177.09,5.6436]
[1752949019051,3.24,177.1,177.09,5.6436]
[1752949019551,3.24,177.1,177.09,3.2]
[1752949022356,3.24,177.1,177.07,8.8444]
[1752949022654,3.24,177.09,177.07,8.8444]
[1752949024855,3.24,177.09,177.05,106.26]
[1752949025055,3.24,177.09,177.05,3.2]
[1752949025354,5.6444,177.08,177.05,8.8451]
[1752949025556,0.03878669,177.11,177.06,3.2]
[1752949026058,2.40641042,177.13,177.06,3.2]
[1752949026257,3.24,177.09,177.06,3.2]
[1752949026555,3.24,177.09,177.08,3.2]
[1752949027959,3.24,177.09,177.06,8.8446]
[1752949028158,3.24,177.09,177.07,3.24162672]
[1752949028557,3.24,177.09,177.07,8.88612672]
[1752949028860,3.24,177.09,177.08,3.2]
[1752949029058,8.8839,177.09,177.07,0.04162672]
[1752949029260,3.24,177.08,177.07,3.24162672]
[1752949030159,3.24,177.08,177.07,8.88612672]
[1752949030359,3.24,177.08,177.07,3.24162672]
[1752949031355,3.24,177.08,177.07,8.88612672]
[1752949031555,3.24,177.09,177.07,3.24162672]
[1752949031962,3.24,177.09,177.08,5.6441]
[1752949032158,3.24,177.09,177.08,3.2]
[1752949033264,3.24,177.08,177.07,3.24162672]
[1752949034258,8.8842,177.08,177.07,0.04162672]
[1752949036762,5.6461,177.02,177.01,3.2]
[1752949036967,8.8861,177.02,177.01,3.2]
[1752949037362,3.24,177.02,177.01,3.2]
[1752949038667,3.24,177.02,177.01,8.8464]
[1752949043463,3.24,177.02,177.01,5.6464]
[1752949043669,3.24,177.02,177.0,8.6966]
[1752949044373,3.24,177.02,177.01,5.6464]
[1752949045168,0.04121604,177.03,177.02,5.6461]
[1752949045369,0.04121604,177.03,177.02,8.6961]
[1752949045670,3.10121604,177.03,177.02,8.6961]
[1752949048066,0.04121604,177.03,177.02,8.6961]
[1752949048270,3.06,177.08,177.02,3.05]
[1752949048470,3.06,177.08,177.04,3.05]
[1752949048770,3.06,177.1,177.09,8.6939]
[1752949049571,3.06,177.1,177.09,3.05]
[1752949050176,3.06,177.1,177.08,5.644]
[1752949050475,3.06,177.1,177.08,8.694]
[1752949051876,3.06,177.08,176.99,3.05]
[1752949052067,3.06,177.05,176.99,3.05]
[1752949052474,3.06,177.05,177.01,5.6462]
[1752949052672,0.04202505,177.04,177.01,8.6962]
[1752949052970,3.06,177.03,177.01,8.6962]
[1752949053170,3.06,177.02,177.01,8.6962]
[1752949055471,3.06,177.02,177.01,3.05]
[1752949056783,3.06,177.02,177.01,8.6964]
[1752949059083,0.04202505,177.04,177.02,3.05]
[1752949059283,0.04202505,177.04,177.03,3.05]
[1752949059284,3.10202505,177.04,177.03,3.05]
[1752949059483,3.10202505,177.04,177.03,8.6958]
[1752949060582,0.04202505,177.04,177.03,8.6958]
[1752949060786,3.06,177.07,177.06,8.6948]
[1752949061485,5.6437,177.1,177.07,5.6443]
[1752949061685,3.06,177.08,177.07,5.6443]
[1752949061983,3.06,177.11,177.09,5.6438]
[1752949062176,3.06,177.1,177.09,5.6438]
[1752949062377,3.06,177.13,177.09,5.6438]
[1752949062690,3.06,177.1,177.09,3.05]
[1752949063282,3.06,177.1,177.08,5.67963556]
[1752949063480,0.03656224,177.11,177.09,5.6439]
[1752949063680,0.03656224,177.11,177.09,8.6939]
[1752949063987,3.06,177.1,177.09,8.6939]
[1752949065784,0.03656224,177.11,177.09,8.6939]
[1752949066090,3.09656224,177.11,177.1,8.6935]
[1752949066792,3.09656224,177.11,177.1,3.05]
[1752949066987,3.09656224,177.11,177.08,3.08563556]
[1752949067287,3.09656224,177.11,177.09,3.05]
[1752949067989,3.09656224,177.11,177.08,0.03563556]
[1752949068189,8.73986224,177.11,177.08,0.03563556]
[1752949068494,3.06,177.1,177.08,0.03563556]
[1752949068684,3.06,177.1,177.08,3.08563556]
[1752949069186,3.06,177.09,177.08,3.08563556]
[1752949070389,3.06,177.09,177.08,0.03563556]
[1752949071291,8.7039,177.09,177.08,0.03563556]
[1752949072385,8.7039,177.09,177.08,3.32563556]
[1752949072690,8.7039,177.09,177.08,0.03563556]
[1752949074181,3.06,177.09,177.08,3.32563556]
[1752949075486,3.06,177.09,177.08,0.03563556]
[1752949075691,3.06,177.09,177.08,3.32563556]
[1752949076488,3.06,177.09,177.08,0.03563556]
[1752949076990,3.06,177.09,177.08,3.32563556]
[1752949078897,3.06,177.09,177.08,8.96983556]
[1752949079196,3.23,177.1,177.09,3.29]
[1752949079995,3.23,177.1,177.09,8.9338]
[1752949081301,3.26656224,177.11,177.1,8.9335]
[1752949081597,3.26656224,177.11,177.1,3.29]
[1752949083391,3.26656224,177.11,177.09,5.6437]
[1752949083597,3.26656224,177.11,177.09,8.9337]
[1752949083991,3.23,177.1,177.08,0.03563556]
[1752949084492,3.23,177.1,177.08,3.32563556]
[1752949084892,3.23,177.09,177.08,0.03563556]
[1752949085404,8.8739,177.09,177.08,0.03563556]
[1752949086596,3.23,177.09,177.08,0.03563556]
[1752949086799,3.23,177.09,177.08,3.32563556]
[1752949089201,8.8739,177.09,177.08,3.32563556]
[1752949089501,8.8739,177.09,177.08,0.03563556]
[1752949090800,3.23,177.09,177.08,0.03563556]
[1752949091896,3.23,177.09,177.08,3.32563556]
[1752949093799,3.23,177.09,177.08,0.03563556]
[1752949096802,3.23,177.09,177.04,3.29]
[1752949096803,3.23,177.08,177.04,3.29]
[1752949097203,3.23,177.05,177.04,3.29]
[1752949099204,3.23,177.05,177.02,5.646]
[1752949099405,3.23,177.05,177.03,3.29]
[1752949100201,3.23,177.05,177.04,3.32]
[1752949100608,5.6452,177.05,177.03,3.32]
[1752949100810,3.11,177.03,177.01,3.32]
[1752949101208,2.44794921,177.04,176.95,381.72641042]
[1752949101410,3.11,177.03,176.96,3.32]
[1752949101908,5.6458,177.03,177.0,3.32]
[1752949102107,3.11,177.01,177.0,3.32]
[1752949102409,3.11,177.01,177.0,8.9667]
[1752949102609,3.11,177.01,177.0,3.32]
[1752949105012,3.11,177.01,176.98,5.6474]
[1752949105210,3.11,177.01,176.98,3.32]
[1752949105713,8.79714919,177.01,176.98,3.32]
[1752949105912,3.11,177.0,176.98,3.32]
[1752949106310,3.11,176.99,176.96,3.32]
[1752949106915,3.11,176.98,176.96,3.32]
[1752949107109,2.40641042,176.98,176.95,3.32]
[1752949107311,3.11,176.97,176.95,3.32]
[1752949107814,3.11,176.96,176.9,2.40641042]
[1752949108313,2.40641042,176.98,176.91,3.32]
[1752949108506,3.14764729,176.95,176.91,3.32]